bitfinex/quotes_SOLUSD_20250507
["timestamp","ask_amount","ask_price","bid_price","bid_amount"]
[1746638755487,37.99980734,146.25,146.21,20.90579025]
[1746638755802,17.09401709,146.25,146.21,20.90579025]
[1746638756303,37.99980734,146.25,146.21,20.90579025]
[1746638756603,44.83741417,146.25,146.21,20.90579025]
[1746638756788,20.90579025,146.23,146.19,20.90579025]
[1746638757103,51.35431417,146.25,146.2,20.90579025]
[1746638757604,51.35431417,146.25,146.21,20.90579025]
[1746638757901,20.90579025,146.24,146.2,20.90579025]
[1746638758805,6.83854202,146.23,146.2,20.90579025]
[1746638759389,23.93489707,146.23,146.2,20.90579025]
[1746638760383,23.93489707,146.23,146.17,26.0]
[1746638760582,23.93489707,146.23,146.19,20.90579025]
[1746638760907,44.84068732,146.23,146.19,20.90579025]
[1746638761608,44.84068732,146.23,146.17,26.0]
[1746638761903,44.84068732,146.23,146.19,20.90579025]
[1746638762284,23.93489707,146.23,146.19,20.90579025]
[1746638762490,6.83854202,146.23,146.21,20.90579025]
[1746638765009,27.74386464,146.24,146.2,20.90579025]
[1746638765799,44.83905063,146.24,146.19,20.90579025]
[1746638767014,44.83905063,146.24,146.17,26.0]
[1746638767212,20.90579025,146.21,146.17,20.90579025]
[1746638768287,20.90579025,146.19,146.14,16.08]
[1746638768507,20.90579025,146.18,146.14,20.90579025]
[1746638769191,27.74713936,146.17,146.12,20.90579025]
[1746638769407,27.74713936,146.17,146.13,20.90579025]
[1746638770009,6.84134911,146.17,146.13,20.90579025]
[1746638770395,27.74713936,146.17,146.13,20.90579025]
[1746638770993,27.74713936,146.17,146.12,46.90579025]
[1746638772515,27.74713936,146.17,146.12,53.7494773]
[1746638773220,27.74713936,146.17,146.13,20.90579025]
[1746638775725,20.90579025,146.14,146.06,6.91837954]
[1746638776017,20.90579025,146.14,146.1,20.90579025]
[1746638777017,27.74886989,146.14,146.1,20.90579025]
[1746638777620,6.84307964,146.14,146.1,20.90579025]
[1746638777916,6.84307964,146.14,146.11,20.90579025]
[1746638779923,27.74886989,146.14,146.1,20.90579025]
[1746638780295,20.90579025,146.13,146.09,20.90579025]
[1746638781226,20.90579025,146.13,146.08,20.90579025]
[1746638781592,6.84369011,146.12,146.09,20.90579025]
[1746638783318,6.84369011,146.12,146.07,26.0]
[1746638783501,6.84369011,146.12,146.09,20.90579025]
[1746638786632,6.84369011,146.12,146.08,20.90579025]
[1746638788440,6.84369011,146.12,146.07,26.0]
[1746638788441,20.90579025,146.11,146.06,6.91837954]
[1746638788622,20.90579025,146.11,146.06,27.82416979]
[1746638789134,18.79181043,146.11,146.08,20.90579025]
[1746638790537,6.84462696,146.1,146.07,20.90579025]
[1746638790716,46.54190934,146.11,146.07,20.90579025]
[1746638791116,25.63611909,146.11,146.08,20.90579025]
[1746638792741,25.63611909,146.11,146.07,20.90579025]
[1746638793412,46.54190934,146.11,146.06,27.82416979]
[1746638793619,20.90579025,146.09,146.06,6.91837954]
[1746638794134,20.90579025,146.1,146.06,6.91837954]
[1746638794835,20.90579025,146.1,146.06,27.82416979]
[1746638795338,27.75083017,146.1,146.06,6.91837954]
[1746638795539,39.69760068,146.09,146.06,6.91837954]
[1746638796037,39.55543911,146.09,146.06,6.91837954]
[1746638796242,18.64964886,146.09,146.06,6.91837954]
[1746638796921,18.64964886,146.09,146.06,27.82416979]
[1746638798238,25.49481006,146.09,146.06,27.82416979]
[1746638798439,25.49481006,146.09,146.06,6.91837954]
[1746638803437,46.40060031,146.09,146.06,6.91837954]
[1746638804438,25.49481006,146.09,146.06,6.91837954]
[1746638806746,18.64964886,146.09,146.06,6.91837954]
[1746638808946,25.49482078,146.09,146.06,6.91837954]
[1746638810147,136.8,146.11,146.07,20.90579025]
[1746638810451,136.8,146.11,146.08,20.90579025]
[1746638810748,143.64423626,146.11,146.06,13.7648574]
[1746638810930,136.8,146.11,146.08,20.90579025]
[1746638811751,143.64449334,146.11,146.08,20.90579025]
[1746638812438,143.64449334,146.11,146.07,20.90579025]
[1746638812754,143.64449334,146.11,146.08,20.90579025]
[1746638812931,143.64449334,146.11,146.09,20.90579025]
[1746638813436,143.64449334,146.11,146.08,20.90579025]
[1746638813836,143.64449334,146.11,146.07,20.90579025]
[1746638816658,143.64449334,146.11,146.08,20.90579025]
[1746638821861,6.84322178,146.13,146.06,13.7647619]
[1746638822159,6.84322178,146.13,146.12,20.90579025]
[1746638822674,6.84293733,146.14,146.12,20.90579025]
[1746638827366,6.84293733,146.14,146.11,20.90579025]
[1746638827667,23.94982114,146.14,146.06,13.76475422]
[1746638827886,44.85561139,146.14,146.1,20.90579025]
[1746638828183,23.94982114,146.14,146.1,20.90579025]
[1746638829972,23.94982114,146.14,146.13,20.90579025]
[1746638830160,6.84293733,146.14,146.13,20.90579025]
[1746638830562,6.84181718,146.16,146.13,20.90579025]
[1746638830767,6.84181718,146.16,146.15,20.90579025]
[1746638831550,23.94544324,146.17,146.15,20.90579025]
[1746638832483,23.94544324,146.17,146.1,14.75244719]
[1746638832658,23.94544324,146.17,146.14,20.90579025]
[1746638833279,23.94544324,146.17,146.13,20.90579025]
[1746638834584,23.94544324,146.17,146.14,20.90579025]
[1746638839657,23.94544324,146.17,146.13,20.90579025]
[1746638842167,23.94544324,146.17,146.14,20.90579025]
[1746638845191,23.94544324,146.17,146.13,20.90579025]
[1746638845356,44.85123349,146.17,146.13,20.90579025]
[1746638845879,44.85123349,146.17,146.1,7.908]
[1746638846069,44.85123349,146.17,146.13,20.90579025]
[1746638847663,23.94544324,146.17,146.13,20.90579025]
[1746638849586,44.85123349,146.17,146.13,20.90579025]
[1746638850569,20.90579025,146.15,146.1,26.0]
[1746638850774,20.90579025,146.14,146.09,26.0]
[1746638850991,20.90579025,146.14,146.1,20.90579025]
[1746638851681,6.84181718,146.16,146.12,20.90579025]
[1746638851873,6.84181718,146.16,146.14,20.90579025]
[1746638852084,6.84181718,146.16,146.15,20.90579025]
[1746638852887,6.84134911,146.17,146.15,20.90579025]
[1746638853278,6.84134911,146.17,146.1,6.84440575]
[1746638853480,6.84134911,146.17,146.14,20.90579025]
[1746638862188,6.84134911,146.17,146.11,8.50582581]
[1746638862389,6.84134911,146.17,146.14,20.90579025]
[1746638862771,157.70579025,146.18,146.14,20.90579025]
[1746638862988,136.8,146.18,146.14,20.90579025]
[1746638864170,136.8,146.18,146.15,20.90579025]
[1746638865972,136.8,146.18,146.16,20.90579025]
[1746638867394,136.8,146.18,146.17,20.90579025]
[1746638867588,27.6592,146.21,146.17,20.90579025]
[1746638869594,48.56499025,146.21,146.17,20.90579025]
[1746638871400,48.56499025,146.21,146.16,20.90579025]
[1746638871780,20.90579025,146.2,146.15,20.90579025]
[1746638872611,20.90579025,146.19,146.11,7.9879]
[1746638872790,20.90579025,146.19,146.15,20.90579025]
[1746638874200,20.90579025,146.18,146.11,1.6619]
[1746638874398,20.90579025,146.18,146.13,20.90579025]
[1746638874599,20.90579025,146.18,146.14,20.90579025]
[1746638875304,18.79181043,146.19,146.14,20.90579025]
[1746638875492,20.90579025,146.18,146.14,20.90579025]
[1746638875694,20.90579025,146.19,146.15,20.90579025]
[1746638875892,157.70579025,146.2,146.15,20.90579025]
[1746638878007,136.8,146.2,146.16,20.90579025]
[1746638878705,157.70579025,146.2,146.16,20.90579025]
[1746638879606,157.70579025,146.2,146.11,1.6619]
[1746638879912,157.70579025,146.2,146.16,20.90579025]
[1746638881211,136.8,146.2,146.16,20.90579025]
[1746638882184,136.8,146.2,146.17,20.90579025]
[1746638884107,136.8,146.2,146.16,20.90579025]
[1746638884491,157.70579025,146.2,146.16,20.90579025]
[1746638884889,157.70579025,146.2,146.12,6.4772]
[1746638885087,157.70579025,146.2,146.16,20.90579025]
[1746638886416,157.70579025,146.2,146.15,20.90579025]
[1746638888410,157.70579025,146.2,146.12,6.4772]
[1746638888411,136.8,146.2,146.16,20.90579025]
[1746638888914,136.8,146.2,146.12,6.4772]
[1746638888915,157.70579025,146.2,146.12,6.4772]
[1746638889098,157.70579025,146.2,146.16,20.90579025]
[1746638889812,150.2899785,146.2,146.16,13.4899785]
[1746638891319,150.2899785,146.2,146.12,6.4772]
[1746638891510,150.2899785,146.2,146.15,13.4899785]
[1746638892731,136.8,146.2,146.16,13.4899785]
[1746638897007,150.2899785,146.2,146.15,13.4899785]
[1746638899031,150.2899785,146.2,146.12,6.4772]
[1746638899329,150.2899785,146.2,146.16,13.4899785]
[1746638899937,0.14216157,146.22,146.18,13.4899785]
[1746638900436,58.13962736,146.23,146.19,13.4899785]
[1746638901535,13.4899785,146.22,146.18,13.4899785]
[1746638902113,32.28178893,146.21,146.17,13.4899785]
[1746638902437,13.4899785,146.19,146.15,13.4899785]
[1746638902936,13.4899785,146.2,146.15,13.4899785]
[1746638905752,21.07936701,146.2,146.15,21.07936701]
[1746638907826,39.87117744,146.21,146.16,21.07936701]
[1746638910719,39.87117744,146.21,146.17,21.07936701]
[1746638912448,18.79181043,146.21,146.17,21.07936701]
[1746638912833,136.8,146.22,146.18,21.07936701]
[1746638913038,136.8,146.22,146.19,21.07936701]
[1746638913243,136.8,146.22,146.2,21.07936701]
[1746638913622,136.8,146.22,146.21,21.07936701]
[1746638913942,18.79181043,146.24,146.21,21.07936701]
[1746638915048,18.79181043,146.24,146.2,21.07936701]
[1746638915221,39.87117744,146.24,146.2,21.07936701]
[1746638915643,39.87117744,146.24,146.19,21.07936701]
[1746638916744,18.79181043,146.24,146.2,21.07936701]
[1746638917045,164.3509,146.25,146.23,21.07936701]
[1746638917046,136.8,146.25,146.23,21.07936701]
[1746638918834,136.8,146.25,146.22,21.07936701]
[1746638919436,157.87936701,146.25,146.2,21.07936701]
[1746638920553,21.07936701,146.23,146.16,1.6475]
[1746638920750,21.07936701,146.23,146.18,21.07936701]
[1746638920956,21.07936701,146.22,146.18,21.07936701]
[1746638921254,21.07936701,146.22,146.15,26.0]
[1746638921549,21.07936701,146.22,146.17,21.07936701]
[1746638921731,21.07936701,146.22,146.18,21.07936701]
[1746638921930,18.79181043,146.22,146.18,21.07936701]
[1746638925846,18.79181043,146.22,146.19,21.07936701]
[1746638926243,18.79181043,146.22,146.18,21.07936701]
[1746638929958,18.79181043,146.22,146.19,21.07936701]
[1746638930460,18.79181043,146.22,146.15,26.0]
[1746638930656,18.79181043,146.22,146.18,21.07936701]
[1746638930962,18.64964886,146.22,146.18,21.07936701]
[1746638931257,18.64964886,146.22,146.19,21.07936701]
[1746638936861,18.64964886,146.22,146.18,21.07936701]
[1746638937157,39.72901587,146.22,146.17,21.07936701]
[1746638937856,0.14216157,146.21,146.17,21.07936701]
[1746638938160,18.64964886,146.2,146.16,21.07936701]
[1746638938465,21.07936701,146.2,146.16,21.07936701]
[1746638938638,18.64964886,146.2,146.16,21.07936701]
[1746638938967,18.64964886,146.2,146.17,21.07936701]
[1746638939958,18.64964886,146.2,146.18,21.07936701]
[1746638941059,18.64964886,146.2,146.17,21.07936701]
[1746638942559,0.14216157,146.21,146.17,21.07936701]
[1746638942873,18.79181043,146.21,146.18,21.07936701]
[1746638943863,21.07936701,146.22,146.18,21.07936701]
[1746638944067,18.64964886,146.22,146.19,21.07936701]
[1746638945668,18.64964886,146.22,146.18,21.07936701]
[1746638946052,39.72901587,146.22,146.18,21.07936701]
[1746638946670,0.14216157,146.21,146.14,26.0]
[1746638946849,18.64964886,146.2,146.16,21.07936701]
[1746638947763,21.07936701,146.2,146.14,26.0]
[1746638948059,18.79181043,146.19,146.16,21.07936701]
[1746638948268,18.64964886,146.19,146.16,21.07936701]
[1746638950070,136.94216157,146.2,146.16,21.07936701]
[1746638950294,136.94216157,146.2,146.17,21.07936701]
[1746638950574,136.94216157,146.2,146.14,26.0]
[1746638950751,136.94216157,146.2,146.17,21.07936701]
[1746638952198,136.94216157,146.2,146.14,26.0]
[1746638952509,136.94216157,146.2,146.17,21.07936701]
[1746638953792,136.94216157,146.2,146.17,13.48922903]
[1746638955978,0.14216157,146.22,146.19,13.48922903]
[1746638956277,0.14216157,146.22,146.2,13.48922903]
[1746638957584,0.14216157,146.22,146.19,13.48922903]
[1746638957878,0.14216157,146.22,146.19,21.06903329]
[1746638958097,0.14216157,146.22,146.14,26.0]
[1746638958380,21.21119486,146.22,146.17,21.06903329]
[1746638960082,21.21119486,146.22,146.18,21.06903329]
[1746638960270,21.21119486,146.22,146.17,21.06903329]
[1746638961686,21.21119486,146.22,146.18,21.06903329]
[1746638962983,0.14216157,146.22,146.19,21.06903329]
[1746638963281,39.71868215,146.23,146.2,21.06903329]
[1746638963282,18.64964886,146.23,146.2,21.06903329]
[1746638964278,18.64964886,146.21,146.12,84.0826]
[1746638964482,18.64964886,146.21,146.17,21.06903329]
[1746638966393,18.64964886,146.21,146.16,21.06903329]
[1746638966885,39.71868215,146.21,146.16,21.06903329]
[1746638970962,18.64964886,146.21,146.16,21.06903329]
[1746638973085,18.64964886,146.21,146.17,21.06903329]
[1746638979886,18.64964886,146.21,146.17,13.48755138]
[1746638982299,18.64964886,146.21,146.18,13.48755138]
[1746638983096,6.51,146.24,146.14,13.48755138]
[1746638983097,18.64964886,146.18,146.14,13.48755138]
[1746638983340,138.462,146.2,146.16,13.48755138]
[1746638983482,138.462,146.2,146.17,13.48755138]
[1746638983681,136.8,146.2,146.17,13.48755138]
[1746638983878,136.8,146.2,146.18,13.48755138]
[1746638984197,136.8,146.2,146.17,13.48755138]
[1746638985501,5.1278058,146.19,146.17,13.48755138]
[1746638985699,5.1278058,146.19,146.17,21.07480873]
[1746638986501,5.1278058,146.18,146.17,21.07480873]
[1746638992918,136.8,146.2,146.17,21.07480873]
[1746638993122,136.8,146.2,146.18,21.07480873]
[1746638994113,18.79181043,146.22,146.18,21.07480873]
[1746638996399,18.79181043,146.22,146.2,21.07480873]
[1746638997013,162.8,146.23,146.2,21.07480873]
[1746638998018,162.8,146.23,146.19,21.07480873]
[1746638998812,183.87480873,146.23,146.18,21.07480873]
[1746638999688,21.07480873,146.21,146.17,21.07480873]
[1746638999913,21.07480873,146.21,146.16,21.07480873]
[1746639000324,39.86661916,146.22,146.17,21.07480873]
[1746639001721,21.07480873,146.21,146.17,21.07480873]
[1746639004120,39.86661916,146.22,146.17,21.07480873]
[1746639005727,32.28002331,146.22,146.17,13.48821288]
[1746639006124,32.28002331,146.22,146.12,1.5689]
[1746639006331,32.28002331,146.22,146.17,13.48821288]
[1746639006708,32.28002331,146.2,146.16,13.48821288]
[1746639009015,32.28002331,146.2,146.12,1.5689]
[1746639009220,32.28002331,146.2,146.15,13.48821288]
[1746639009731,18.79181043,146.18,146.15,13.48821288]
[1746639010930,0.14216157,146.18,146.15,13.48821288]
[1746639011525,18.64964886,146.2,146.17,13.48821288]
[1746639011733,136.8,146.21,146.18,13.48821288]
[1746639012038,136.8,146.21,146.19,13.48821288]
[1746639012414,136.8,146.21,146.2,13.48821288]
[1746639012616,1.662,146.24,146.2,13.48821288]
[1746639012819,18.64964886,146.24,146.21,13.48821288]
[1746639013839,18.64964886,146.24,146.21,21.06409766]
[1746639014044,39.85590809,146.23,146.16,26.0]
[1746639014214,39.85590809,146.23,146.18,21.06409766]
[1746639015038,39.85590809,146.23,146.19,21.06409766]
[1746639015347,18.79181043,146.23,146.19,21.06409766]
[1746639015531,18.79181043,146.23,146.2,21.06409766]
[1746639015734,136.8,146.24,146.21,21.06409766]
[1746639016038,136.8,146.24,146.2,21.06409766]
[1746639016939,136.8,146.24,146.22,21.06409766]
[1746639017231,180.46249766,146.29,146.23,21.06409766]
[1746639017422,18.64964886,146.27,146.25,21.06409766]
[1746639017824,136.8,146.28,146.25,21.06409766]
[1746639018040,136.8,146.28,146.26,21.06409766]
[1746639018212,136.8,146.28,146.25,21.06409766]
[1746639018824,136.8,146.28,146.26,21.06409766]
[1746639019023,136.8,146.28,146.27,21.06409766]
[1746639019327,136.8,146.28,146.25,21.06409766]
[1746639019825,136.8,146.28,146.19,26.0]
[1746639020040,136.8,146.28,146.25,21.06409766]
[1746639020908,136.8,146.28,146.24,21.06409766]
[1746639022418,136.8,146.28,146.25,21.06409766]
[1746639022837,18.79181043,146.27,146.23,21.06409766]
[1746639023141,21.06409766,146.26,146.21,21.06409766]
[1746639023352,21.06409766,146.23,146.19,21.06409766]
[1746639023838,21.06409766,146.24,146.19,21.06409766]
[1746639024753,39.85590809,146.25,146.21,21.06409766]
[1746639024947,136.8,146.26,146.23,21.06409766]
[1746639025154,136.8,146.26,146.25,21.06409766]
[1746639025328,18.79181043,146.28,146.25,21.06409766]
[1746639027238,18.79181043,146.28,146.24,21.06409766]
[1746639032051,18.64964886,146.28,146.25,21.06409766]
[1746639033367,21.20625923,146.29,146.25,21.06409766]
[1746639036268,21.06409766,146.27,146.23,21.06409766]
[1746639038157,39.85590809,146.28,146.23,21.06409766]
[1746639038365,162.8,146.3,146.24,21.06409766]
[1746639038563,162.8,146.3,146.25,21.06409766]
[1746639038564,18.64964886,146.29,146.25,21.06409766]
[1746639038736,39.71374652,146.29,146.25,21.06409766]
[1746639040455,18.64964886,146.29,146.25,21.06409766]
[1746639040886,136.94216157,146.3,146.26,21.06409766]
[1746639041456,136.8,146.3,146.27,21.06409766]
[1746639041666,136.8,146.3,146.28,21.06409766]
[1746639041978,136.8,146.3,146.29,21.06409766]
[1746639042654,136.8,146.3,146.28,21.06409766]
[1746639045167,21.06409766,146.33,146.28,21.06409766]
[1746639045548,164.3192,146.34,146.3,21.06409766]
[1746639045749,162.8,146.34,146.3,21.06409766]
[1746639046141,183.86409766,146.34,146.3,21.06409766]
[1746639046871,136.8,146.34,146.3,21.06409766]
[1746639047045,136.8,146.34,146.31,21.06409766]
[1746639047266,22.06409766,146.36,146.31,21.06409766]
[1746639047463,22.06409766,146.36,146.32,21.06409766]
[1746639048393,1.0,146.36,146.33,21.06409766]
[1746639048561,1.0,146.36,146.32,21.06409766]
[1746639049587,21.06409766,146.35,146.28,27.564]
[1746639049886,21.06409766,146.35,146.31,21.06409766]
[1746639050089,21.06409766,146.35,146.3,21.06409766]
[1746639050291,21.06409766,146.35,146.31,21.06409766]
[1746639051286,21.06409766,146.35,146.3,21.06409766]
[1746639051476,21.06409766,146.35,146.31,21.06409766]
[1746639053380,18.79181043,146.35,146.31,21.06409766]
[1746639054888,39.85590809,146.35,146.31,21.06409766]
[1746639055476,39.85590809,146.35,146.28,27.564]
[1746639055679,39.85590809,146.35,146.3,21.06409766]
[1746639057189,21.06409766,146.33,146.28,21.06409766]
[1746639058495,21.06409766,146.33,146.29,21.06409766]
[1746639060885,21.06409766,146.33,146.28,21.06409766]
[1746639061096,21.06409766,146.32,146.28,21.06409766]
[1746639061685,39.85590809,146.31,146.24,27.5102]
[1746639061887,21.06409766,146.3,146.24,27.5102]
[1746639062194,21.06409766,146.31,146.26,21.06409766]
[1746639066372,21.06409766,146.31,146.27,21.06409766]
[1746639068298,39.85590809,146.32,146.27,21.06409766]
[1746639068500,18.79181043,146.34,146.29,21.06409766]
[1746639068701,18.64964886,146.34,146.3,21.06409766]
[1746639069304,18.64964886,146.34,146.31,21.06409766]
[1746639070298,18.64964886,146.34,146.3,21.06409766]
[1746639070902,39.71374652,146.34,146.3,21.06409766]
[1746639075992,21.06409766,146.33,146.26,26.0]
[1746639076184,21.06409766,146.33,146.29,21.06409766]
[1746639076385,39.71374652,146.34,146.29,21.06409766]
[1746639084220,21.06409766,146.31,146.27,21.06409766]
[1746639084601,21.06409766,146.32,146.27,21.06409766]
[1746639085719,0.14216157,146.33,146.27,21.06409766]
[1746639085901,21.06409766,146.32,146.27,21.06409766]
[1746639086213,21.06409766,146.31,146.27,21.06409766]
[1746639086888,21.06409766,146.31,146.26,21.06409766]
[1746639087295,21.06409766,146.31,146.27,21.06409766]
[1746639088829,21.06409766,146.31,146.26,21.06409766]
[1746639089395,21.06409766,146.31,146.24,27.5102]
[1746639089396,21.06409766,146.29,146.24,21.06409766]
[1746639089601,21.06409766,146.28,146.24,21.06409766]
[1746639089821,21.06409766,146.28,146.23,21.06409766]
[1746639090022,21.06409766,146.27,146.23,21.06409766]
[1746639090209,21.06409766,146.28,146.23,21.06409766]
[1746639097534,21.06409766,146.28,146.24,21.06409766]
[1746639103019,21.06409766,146.25,146.2,1.5276]
[1746639103336,21.06409766,146.25,146.18,21.06409766]
[1746639103337,21.06409766,146.22,146.18,21.06409766]
[1746639103914,21.06409766,146.22,146.17,21.06409766]
[1746639104939,21.06409766,146.22,146.18,21.06409766]
[1746639105122,21.06409766,146.23,146.18,21.06409766]
[1746639105519,21.06409766,146.24,146.2,21.06409766]
[1746639105714,32.658,146.27,146.22,21.06409766]
[1746639105916,18.64964886,146.26,146.23,21.06409766]
[1746639106517,17.5227,146.29,146.24,21.06409766]
[1746639106725,18.64964886,146.28,146.25,21.06409766]
[1746639107425,0.14216157,146.27,146.24,21.06409766]
[1746639110739,18.64964886,146.28,146.25,21.06409766]
[1746639110952,22.58679766,146.29,146.25,21.06409766]
[1746639111132,22.58679766,146.29,146.24,21.06409766]
[1746639111429,21.06409766,146.27,146.21,26.0]
[1746639111633,21.06409766,146.27,146.23,21.06409766]
[1746639113242,21.06409766,146.27,146.21,26.0]
[1746639113434,21.06409766,146.27,146.23,21.06409766]
[1746639113828,39.85590809,146.28,146.23,21.06409766]
[1746639117148,39.85590809,146.28,146.24,21.06409766]
[1746639117850,18.79181043,146.28,146.24,21.06409766]
[1746639118036,18.79181043,146.28,146.25,21.06409766]
[1746639118228,18.79181043,146.28,146.21,26.0]
[1746639118424,18.79181043,146.28,146.25,21.06409766]
[1746639120149,18.79181043,146.28,146.24,21.06409766]
[1746639120951,18.64964886,146.28,146.24,21.06409766]
[1746639122146,39.71374652,146.28,146.21,26.0]
[1746639122354,39.71374652,146.28,146.23,21.06409766]
[1746639123460,39.71374652,146.26,146.18,16.0]
[1746639123649,21.06409766,146.25,146.2,21.06409766]
[1746639123855,21.06409766,146.24,146.2,21.06409766]
[1746639125653,18.64964886,146.26,146.2,21.06409766]
[1746639125654,21.20625923,146.25,146.2,21.06409766]
[1746639127256,21.06409766,146.24,146.2,21.06409766]
[1746639128050,0.14216157,146.25,146.19,21.06409766]
[1746639128051,21.20625923,146.23,146.19,21.06409766]
[1746639128635,21.20625923,146.23,146.17,26.0]
[1746639128838,21.06409766,146.22,146.18,21.06409766]
[1746639129337,21.20625923,146.23,146.18,21.06409766]
[1746639130158,21.20625923,146.23,146.19,21.06409766]
[1746639134555,21.20625923,146.23,146.14,3.40008659]
[1746639134854,21.06409766,146.22,146.18,21.06409766]
[1746639136268,39.85590809,146.21,146.16,21.06409766]
[1746639137340,39.71374652,146.21,146.16,21.06409766]
[1746639138067,21.06409766,146.2,146.16,21.06409766]
[1746639138240,21.06409766,146.2,146.13,27.6306]
[1746639138442,21.06409766,146.2,146.15,21.06409766]
[1746639138659,21.06409766,146.2,146.13,27.6306]
[1746639139160,21.06409766,146.2,146.16,21.06409766]
[1746639139860,21.06409766,146.21,146.16,21.06409766]
[1746639140869,21.06409766,146.21,146.17,21.06409766]
[1746639142047,21.06409766,146.2,146.16,21.06409766]
[1746639142243,21.20625923,146.19,146.15,21.06409766]
[1746639142456,21.06409766,146.18,146.1,1.6496]
[1746639142662,21.06409766,146.17,146.13,21.06409766]
[1746639142961,26.0,146.17,146.07,28.26664112]
[1746639143169,39.85590809,146.16,146.11,21.06409766]
[1746639144667,39.71374652,146.16,146.11,21.06409766]
[1746639145769,39.71374652,146.16,146.12,21.06409766]
[1746639146355,0.14216157,146.15,146.07,38.71369766]
[1746639146559,21.20625923,146.15,146.11,21.06409766]
[1746639149967,155.44964886,146.16,146.13,21.06409766]
[1746639150148,136.8,146.16,146.13,21.06409766]
[1746639150354,136.8,146.16,146.14,21.06409766]
[1746639150869,176.65590809,146.15,146.07,17.6496]
[1746639151069,39.85590809,146.13,146.09,21.06409766]
[1746639151453,39.85590809,146.13,146.07,1.6496]
[1746639151650,39.85590809,146.13,146.09,21.06409766]
[1746639151958,21.06409766,146.11,146.06,6.91837954]
[1746639152265,21.06409766,146.11,146.07,21.06409766]
[1746639153265,21.06409766,146.11,146.06,27.9824772]
[1746639153670,18.79181043,146.1,146.06,6.91837954]
[1746639153868,21.06409766,146.09,146.06,6.91837954]
[1746639154173,176.65590809,146.1,146.06,27.9824772]
[1746639155160,176.65590809,146.1,146.06,6.91837954]
[1746639155473,176.65590809,146.1,146.06,27.9824772]
[1746639156480,176.65590809,146.1,146.06,6.91837954]
[1746639156677,155.59181043,146.1,146.06,6.91837954]
[1746639156866,176.65590809,146.1,146.06,27.9824772]
[1746639157694,155.59181043,146.1,146.06,27.9824772]
[1746639157872,176.65590809,146.1,146.06,27.9824772]
[1746639158384,176.65590809,146.1,146.06,6.91837954]
[1746639159764,155.59181043,146.1,146.06,6.91837954]
[1746639160081,176.65590809,146.1,146.06,6.91837954]
[1746639160463,21.06409766,146.09,146.06,6.91837954]
[1746639161288,176.65590809,146.1,146.06,6.91837954]
[1746639162808,155.59181043,146.1,146.07,21.06409766]
[1746639163093,155.59181043,146.1,146.06,27.9824772]
[1746639163294,155.59181043,146.1,146.07,21.06409766]
[1746639163469,155.59181043,146.1,146.08,21.06409766]
[1746639163664,136.8,146.1,146.08,21.06409766]
[1746639163879,136.8,146.1,146.09,21.06409766]
[1746639165180,136.8,146.1,146.08,21.06409766]
[1746639165683,136.8,146.1,146.07,21.06409766]
[1746639166888,157.86409766,146.1,146.06,27.9824772]
[1746639168195,157.86409766,146.1,146.06,6.91837954]
[1746639168396,157.86409766,146.1,146.06,27.9824772]
[1746639168995,136.8,146.1,146.07,21.06409766]
[1746639175507,136.8,146.1,146.09,21.06409766]
[1746639175695,136.8,146.13,146.09,21.06409766]
[1746639176898,39.85590809,146.12,146.08,21.06409766]
[1746639177076,39.85590809,146.12,146.07,21.06409766]
[1746639180080,21.06409766,146.11,146.06,27.9824772]
[1746639180398,39.85590809,146.1,146.06,6.91837954]
[1746639182392,18.79181043,146.1,146.06,27.9824772]
[1746639183511,18.79181043,146.1,146.06,6.91837954]
[1746639183685,21.20625923,146.1,146.06,27.9824772]
[1746639183883,0.14216157,146.1,146.06,27.9824772]
[1746639184100,18.79181043,146.1,146.06,27.9824772]
[1746639186412,18.79181043,146.1,146.07,21.06409766]
[1746639189112,18.79181043,146.1,146.06,27.9824772]
[1746639191817,18.79181043,146.1,146.06,20.42571104]
[1746639193313,32.29914193,146.1,146.06,20.42571104]
[1746639194929,32.29914193,146.1,146.06,6.91837954]
[1746639196020,32.29914193,146.07,146.06,6.91837954]
[1746639197927,33.88354193,146.07,146.06,6.91837954]
[1746639198115,18.64964886,146.03,145.97,24.12437262]
[1746639198309,13.64949307,146.02,145.97,24.12437262]
[1746639198624,13.64949307,146.02,145.98,13.5073315]
[1746639198828,0.14216157,146.06,146.01,13.5073315]
[1746639199137,18.79181043,146.07,146.04,13.5073315]
[1746639199739,39.5073315,146.08,146.05,21.10804624]
[1746639199740,18.79181043,146.08,146.05,21.10804624]
[1746639204137,136.8,146.07,146.05,21.10804624]
[1746639204436,136.8,146.07,146.06,21.10804624]
[1746639206024,18.79181043,146.1,146.06,21.10804624]
[1746639206328,18.79181043,146.1,146.07,21.10804624]
[1746639211724,18.79181043,146.1,146.01,1.5688]
[1746639212046,18.79181043,146.1,146.07,21.10804624]
[1746639212654,39.89985667,146.1,146.01,1.5688]
[1746639212938,39.89985667,146.1,146.06,21.10804624]